bitfinex-derivatives/quotes_BTCF0:USTF0_20250322
["timestamp","ask_amount","ask_price","bid_price","bid_amount"]
[1742625735577,0.1263879,84315.0,84314.0,2.16590562]
[1742625742384,0.1263879,84315.0,84314.0,2.16586562]
[1742625745783,0.1263879,84315.0,84314.0,1.8811093]
[1742625747473,0.1573879,84315.0,84314.0,1.8811093]
[1742625750584,0.1903879,84315.0,84314.0,1.8811093]
[1742625755886,0.1903879,84315.0,84314.0,1.1595093]
[1742625756084,0.1903879,84315.0,84314.0,1.8811093]
[1742625767299,0.1573879,84315.0,84314.0,1.8811093]
[1742625770702,0.1573879,84315.0,84314.0,1.1595093]
[1742625770902,0.1573879,84315.0,84314.0,1.8811093]
[1742625771801,0.1573879,84315.0,84314.0,2.16586562]
[1742625772205,0.1573879,84315.0,84314.0,1.44426562]
[1742625772405,0.1573879,84315.0,84314.0,2.16586562]
[1742625776007,0.1263879,84315.0,84314.0,2.16586562]
[1742625776605,0.1263879,84315.0,84314.0,1.8811093]
[1742625779600,0.1263879,84315.0,84314.0,1.1595093]
[1742625779799,0.1263879,84315.0,84314.0,1.8811093]
[1742625780610,0.1263879,84315.0,84314.0,1.1595093]
[1742625781008,0.1263879,84315.0,84314.0,1.8811093]
[1742625781402,0.1582879,84315.0,84314.0,1.1595093]
[1742625781599,0.1582879,84315.0,84314.0,1.8811093]
[1742625782518,0.1582879,84315.0,84314.0,1.1595093]
[1742625782809,0.1582879,84315.0,84314.0,1.8811093]
[1742625783307,0.1896879,84315.0,84314.0,1.8811093]
[1742625783907,0.1896879,84315.0,84314.0,1.1595093]
[1742625784105,0.1896879,84315.0,84314.0,1.8811093]
[1742625784504,0.1896879,84315.0,84314.0,1.1595093]
[1742625784708,0.1896879,84315.0,84314.0,1.8811093]
[1742625787916,0.1896879,84315.0,84314.0,2.16592517]
[1742625799923,0.1896879,84315.0,84314.0,1.44432517]
[1742625800121,0.1896879,84315.0,84314.0,2.16592517]
[1742625800317,0.1896879,84315.0,84314.0,1.44432517]
[1742625800719,0.1896879,84315.0,84314.0,2.16592517]
[1742625802023,0.1896879,84315.0,84314.0,1.44432517]
[1742625802724,0.1896879,84315.0,84314.0,2.16592517]
[1742625802925,0.1896879,84315.0,84314.0,2.05400517]
[1742625803225,0.1896879,84315.0,84314.0,2.16592517]
[1742625803419,0.1896879,84315.0,84314.0,1.44432517]
[1742625803615,0.1896879,84315.0,84314.0,2.16592517]
[1742625804411,0.1896879,84315.0,84314.0,1.44432517]
[1742625804619,0.1896879,84315.0,84314.0,2.16592517]
[1742625807430,0.1896879,84315.0,84314.0,1.44432517]
[1742625807820,0.1896879,84315.0,84314.0,2.16592517]
[1742625808626,0.1582879,84315.0,84314.0,2.16592517]
[1742625809527,0.1582879,84315.0,84314.0,1.44432517]
[1742625810232,0.1582879,84315.0,84314.0,2.16592517]
[1742625812538,0.1582879,84315.0,84314.0,1.44432517]
[1742625812730,0.1582879,84315.0,84314.0,2.16592517]
[1742625813227,0.1263879,84315.0,84314.0,2.16592517]
[1742625816035,0.1263879,84315.0,84314.0,1.8811093]
[1742625818331,0.1916879,84315.0,84314.0,1.8811093]
[1742625819233,0.1916879,84315.0,84314.0,1.1595093]
[1742625819432,0.1916879,84315.0,84314.0,1.8811093]
[1742625819634,0.1916879,84315.0,84314.0,1.1595093]
[1742625819834,0.1916879,84315.0,84314.0,1.8811093]
[1742625821240,0.1591879,84315.0,84314.0,1.8811093]
[1742625824138,0.1591879,84315.0,84314.0,2.16576805]
[1742625824537,0.1263879,84315.0,84314.0,2.16576805]
[1742625825441,0.1263879,84315.0,84314.0,1.44416805]
[1742625825642,0.1263879,84315.0,84314.0,2.16576805]
[1742625832146,0.1263879,84315.0,84314.0,1.44416805]
[1742625832347,0.1263879,84315.0,84314.0,2.16576805]
[1742625832549,0.1263879,84315.0,84314.0,1.44416805]
[1742625832750,0.1263879,84315.0,84314.0,2.16576805]
[1742625833956,0.1263879,84315.0,84314.0,1.44416805]
[1742625834258,0.1263879,84315.0,84314.0,2.16576805]
[1742625835156,0.1263879,84315.0,84314.0,1.44416805]
[1742625835361,0.1263879,84315.0,84314.0,2.16576805]
[1742625836153,0.1263879,84315.0,84314.0,1.44416805]
[1742625836349,0.1263879,84315.0,84314.0,2.16576805]
[1742625837449,0.1263879,84315.0,84314.0,1.44416805]
[1742625837762,0.1263879,84315.0,84314.0,2.16576805]
[1742625839158,0.1899879,84315.0,84314.0,2.16576805]
[1742625839359,0.1899879,84315.0,84314.0,1.44416805]
[1742625839560,0.1899879,84315.0,84314.0,1.8811093]
[1742625841362,0.1899879,84315.0,84314.0,1.1595093]
[1742625841563,0.1899879,84315.0,84314.0,1.8811093]
[1742625841763,0.1899879,84315.0,84314.0,1.1595093]
[1742625841963,0.1899879,84315.0,84314.0,1.8811093]
[1742625843369,0.1899879,84315.0,84314.0,1.1595093]
[1742625843564,0.1899879,84315.0,84314.0,1.8811093]
[1742625846759,0.1899879,84315.0,84314.0,1.1595093]
[1742625846956,0.1899879,84315.0,84314.0,1.8811093]
[1742625862279,0.1576879,84315.0,84314.0,1.8811093]
[1742625863479,0.1576879,84315.0,84314.0,1.1595093]
[1742625863682,0.1576879,84315.0,84314.0,1.8811093]
[1742625867484,0.1576879,84315.0,84314.0,1.1595093]
[1742625867980,0.1263879,84315.0,84314.0,1.8811093]
[1742625870583,0.1263879,84315.0,84314.0,1.1595093]
[1742625870780,0.1263879,84315.0,84314.0,1.8811093]
[1742625872878,0.1263879,84315.0,84314.0,1.76242]
[1742625873079,0.2235879,84315.0,84314.0,1.76242]
[1742625874488,0.2235879,84315.0,84314.0,2.04721444]
[1742625877795,0.2235879,84315.0,84314.0,1.32561444]
[1742625877986,0.2235879,84315.0,84314.0,1.76242]
[1742625879783,0.2235879,84315.0,84314.0,1.8810693]
[1742625879989,0.2235879,84315.0,84314.0,1.1594693]
[1742625880191,0.2235879,84315.0,84314.0,1.8810693]
[1742625881097,0.2235879,84315.0,84314.0,1.76242]
[1742625881601,0.2235879,84315.0,84314.0,1.8810693]
[1742625881801,0.2235879,84315.0,84314.0,1.76242]
[1742625883001,0.2235879,84315.0,84314.0,1.8810693]
[1742625883801,0.2235879,84315.0,84314.0,1.1594693]
[1742625884000,0.2235879,84315.0,84314.0,1.8810693]
[1742625884297,0.2235879,84315.0,84314.0,1.65054]
[1742625884502,0.2235879,84315.0,84314.0,1.76242]
[1742625886498,0.2235879,84315.0,84314.0,1.04082]
[1742625886694,0.2235879,84315.0,84314.0,1.76242]
[1742625887505,0.2235879,84315.0,84314.0,1.04082]
[1742625887711,0.2235879,84315.0,84314.0,1.76242]
[1742625888103,0.2235879,84315.0,84314.0,1.8810693]
[1742625889497,0.2235879,84315.0,84314.0,1.76242]
[1742625889901,0.2235879,84315.0,84314.0,1.65054]
[1742625890202,0.2235879,84315.0,84314.0,1.76242]
[1742625890793,0.2235879,84315.0,84314.0,1.04082]
[1742625891006,0.2235879,84315.0,84314.0,1.76242]
[1742625892704,0.2235879,84315.0,84314.0,1.8810693]
[1742625893602,0.2235879,84315.0,84314.0,1.76242]
[1742625898604,0.2235879,84315.0,84314.0,1.04082]
[1742625898811,0.2243079,84315.0,84314.0,1.76242]
[1742625899013,0.2235879,84315.0,84314.0,1.76242]
[1742625903011,0.1907879,84315.0,84314.0,1.76242]
[1742625903213,0.1578879,84315.0,84314.0,1.76242]
[1742625906913,0.1263879,84315.0,84314.0,1.76242]
[1742625912518,0.1263879,84315.0,84314.0,1.04082]
[1742625912721,0.1263879,84315.0,84314.0,1.76242]
[1742625913529,0.1263879,84315.0,84314.0,1.04082]
[1742625913916,0.1263879,84315.0,84314.0,1.76242]
[1742625915221,0.1263879,84315.0,84314.0,1.04082]
[1742625915625,0.1263879,84315.0,84314.0,1.76242]
[1742625916022,0.1263879,84315.0,84314.0,1.8810693]
[1742625916527,0.1263879,84315.0,84314.0,1.1594693]
[1742625916726,0.1263879,84315.0,84314.0,1.04082]
[1742625916924,0.1263879,84315.0,84314.0,1.8810693]
[1742625919134,0.1263879,84315.0,84314.0,1.1594693]
[1742625919330,0.1263879,84315.0,84314.0,1.8810693]
[1742625920633,0.1263879,84315.0,84314.0,1.1594693]
[1742625920840,0.1263879,84315.0,84314.0,1.8810693]
[1742625923933,0.1263879,84315.0,84314.0,2.16572535]
[1742625925043,0.1263879,84315.0,84314.0,1.93519605]
[1742625925229,0.1263879,84315.0,84314.0,2.04707605]
[1742625925434,0.1894879,84315.0,84314.0,2.04707605]
[1742625927043,0.1894879,84315.0,84314.0,2.16572535]
[1742625927746,0.1584879,84315.0,84314.0,2.16572535]
[1742625928347,0.1584879,84315.0,84314.0,1.8810693]
[1742625928836,0.1584879,84315.0,84314.0,1.1594693]
[1742625929031,0.1584879,84315.0,84314.0,1.8810693]
[1742625931244,0.1584879,84315.0,84314.0,1.1594693]
[1742625931545,0.1584879,84315.0,84314.0,1.8810693]
[1742625932343,0.1584879,84315.0,84314.0,1.1594693]
[1742625932648,0.1584879,84315.0,84314.0,1.8810693]
[1742625933943,0.1584879,84315.0,84314.0,1.5202693]
[1742625934148,0.1584879,84315.0,84314.0,1.8810693]
[1742625934750,0.1904879,84315.0,84314.0,1.7691893]
[1742625934951,0.1904879,84315.0,84314.0,1.8810693]
[1742625938245,0.1904879,84315.0,84314.0,1.1594693]
[1742625938444,0.1904879,84315.0,84314.0,1.8810693]
[1742625942854,0.1904879,84315.0,84314.0,1.1594693]
[1742625943049,0.1911679,84315.0,84314.0,1.8810693]
[1742625943356,0.1904879,84315.0,84314.0,1.8810693]
[1742625944450,0.1904879,84315.0,84314.0,1.1594693]
[1742625944651,0.1911679,84315.0,84314.0,1.8810693]
[1742625944846,0.1904879,84315.0,84314.0,1.8810693]
[1742625950645,0.1584879,84315.0,84314.0,1.8810693]
[1742625954756,0.1263879,84315.0,84314.0,1.8810693]
[1742625955551,0.1263879,84315.0,84314.0,1.1594693]
[1742625955757,0.1263879,84315.0,84314.0,1.8810693]
[1742625956462,0.1263879,84315.0,84314.0,1.1594693]
[1742625956765,0.1263879,84315.0,84314.0,1.8810693]
[1742625958553,0.1263879,84315.0,84314.0,1.1594693]
[1742625958754,0.1263879,84315.0,84314.0,1.8810693]
[1742625959463,0.1263879,84315.0,84314.0,1.1594693]
[1742625959662,0.1263879,84315.0,84314.0,1.8810693]
[1742625962962,0.1263879,84315.0,84314.0,2.16572535]
[1742625963664,0.1263879,84315.0,84314.0,1.44412535]
[1742625963866,0.1263879,84315.0,84314.0,2.16572535]
[1742625964664,0.1263879,84315.0,84314.0,1.44412535]
[1742625965068,0.1263879,84315.0,84314.0,2.16572535]
[1742625970369,0.1263879,84315.0,84314.0,1.44412535]
[1742625970673,0.1263879,84315.0,84314.0,2.16572535]
[1742625972357,0.1263879,84315.0,84314.0,1.44412535]
[1742625972561,0.1263879,84315.0,84314.0,1.8810693]
[1742625978871,0.1263879,84315.0,84314.0,1.1594693]
[1742625979175,0.1263879,84315.0,84314.0,1.8810693]
[1742625979960,0.1263879,84315.0,84314.0,1.1594693]
[1742625980165,0.1263879,84315.0,84314.0,1.8810693]
[1742625986569,0.1883879,84315.0,84314.0,1.8810693]
[1742625990673,0.1883879,84315.0,84314.0,1.1594693]
[1742625990869,0.1883879,84315.0,84314.0,1.8810693]
[1742625991983,0.1883879,84315.0,84314.0,1.1594693]
[1742625992185,0.1883879,84315.0,84314.0,1.8810693]
[1742626001590,0.1883879,84315.0,84314.0,2.16572535]
[1742626010194,0.1883879,84315.0,84314.0,1.44412535]
[1742626010394,0.1883879,84315.0,84314.0,2.16572535]
[1742626010790,0.1571879,84315.0,84314.0,2.16572535]
[1742626012494,0.1571879,84315.0,84314.0,1.8810693]
[1742626017493,0.1571879,84315.0,84314.0,1.1594693]
[1742626017692,0.1571879,84315.0,84314.0,1.8810693]
[1742626021102,0.1903879,84315.0,84314.0,1.8810693]
[1742626031804,0.00774,84315.0,84314.0,1.8810693]
[1742626032205,0.0593159,84327.0,84322.0,0.118638]
[1742626032421,0.0315,84335.0,84322.0,0.861958]
[1742626032615,0.0593064,84340.0,84322.0,0.74332]
[1742626032616,0.0593886,84337.0,84322.0,0.74332]
[1742626032920,0.1780055,84337.0,84336.0,0.8402183]
[1742626033107,0.1786855,84337.0,84336.0,0.9528183]
[1742626033309,0.47494601,84337.0,84336.0,0.9528183]
[1742626035413,0.35632911,84337.0,84336.0,0.9848183]
[1742626035612,0.00076,84337.0,84336.0,0.99354404]
[1742626035815,8e-05,84337.0,84336.0,1.02574404]
[1742626036510,0.1186157,84338.0,84337.0,0.1186169]
[1742626036727,0.1186157,84338.0,84337.0,0.99254913]
[1742626036916,0.1186157,84338.0,84337.0,1.05504913]
[1742626037520,0.1186957,84338.0,84337.0,1.05504913]
[1742626040612,0.1186157,84338.0,84337.0,1.05504913]
[1742626047726,0.1841157,84338.0,84337.0,1.05504913]
[1742626062243,0.1841157,84338.0,84337.0,1.77664913]
[1742626068535,0.1517157,84338.0,84337.0,1.77664913]
[1742626068743,0.1186157,84338.0,84337.0,1.77664913]
[1742626071756,0.1186157,84338.0,84337.0,1.05504913]
[1742626072057,0.1186157,84338.0,84337.0,1.77664913]
[1742626077656,0.1186157,84338.0,84337.0,1.05504913]
[1742626077858,0.1186157,84338.0,84337.0,1.77664913]
[1742626078850,0.1186157,84338.0,84337.0,1.05504913]
[1742626079055,0.1186157,84338.0,84337.0,1.77664913]
[1742626080149,0.059304,84344.0,84342.0,0.1186085]
[1742626080449,0.1186085,84343.0,84342.0,0.1193285]
[1742626080643,0.29735913,84343.0,84342.0,0.2311285]
[1742626080850,0.41593034,84343.0,84342.0,0.2311285]
[1742626081147,0.44721034,84343.0,84342.0,0.2311285]
[1742626082958,0.44721034,84343.0,84342.0,0.9527285]
[1742626083160,0.47891034,84343.0,84342.0,0.9527285]
[1742626084759,0.17943063,84343.0,84342.0,0.9527285]
[1742626085062,0.17875063,84343.0,84342.0,0.9527285]
[1742626090666,0.17875063,84343.0,84342.0,0.2311285]
[1742626090967,0.17875063,84343.0,84342.0,0.9527285]
[1742626091568,0.17875063,84343.0,84342.0,1.23738455]
[1742626095672,8e-05,84344.0,84343.0,0.1186085]
[1742626095863,8e-05,84344.0,84343.0,0.4295885]
[1742626096166,0.0628,84360.0,84355.0,0.1185916]
[1742626096372,0.00084,84356.0,84355.0,0.5919516]
[1742626096671,8e-05,84356.0,84355.0,0.5919516]
[1742626097062,8e-05,84356.0,84355.0,0.6244516]
[1742626097258,0.00072,84356.0,84355.0,0.6244516]
[1742626098272,0.00072,84356.0,84355.0,0.6254516]
[1742626098470,0.00072,84356.0,84355.0,0.2646516]
[1742626098673,0.00072,84356.0,84355.0,0.9862516]
[1742626098872,8e-05,84356.0,84355.0,1.0168516]
[1742626099573,8e-05,84356.0,84355.0,0.2952516]
[1742626099774,0.00076,84356.0,84355.0,1.0168516]
[1742626099971,8e-05,84356.0,84355.0,1.0168516]
[1742626101668,0.1185809,84363.0,84362.0,0.1185818]
[1742626101872,0.1192609,84363.0,84362.0,1.4529818]
[1742626102067,0.1185809,84363.0,84362.0,1.4529818]
[1742626102570,0.1185809,84363.0,84362.0,1.5494818]
[1742626104068,0.1795809,84363.0,84362.0,1.5494818]
[1742626104468,0.1795809,84363.0,84362.0,1.9102818]
[1742626104973,0.1795809,84363.0,84362.0,1.8779818]
[1742626109571,0.1795809,84363.0,84362.0,1.1563818]
[1742626109973,0.1795809,84363.0,84362.0,1.8779818]
[1742626121687,0.1795809,84363.0,84362.0,1.1563818]
[1742626121992,0.1795809,84363.0,84362.0,1.8779818]
[1742626124187,0.1795809,84363.0,84362.0,1.1563818]
[1742626124388,0.1795809,84363.0,84362.0,1.8779818]
[1742626124588,0.1795809,84363.0,84362.0,1.7662218]
[1742626124796,0.1795809,84363.0,84362.0,1.8779818]
[1742626131507,0.1795809,84363.0,84362.0,1.1563818]
[1742626131696,0.1795809,84363.0,84362.0,1.8779818]
[1742626132600,0.1795809,84363.0,84362.0,1.1563818]
[1742626132801,0.1795809,84363.0,84362.0,1.8779818]
[1742626134089,0.1185809,84363.0,84362.0,1.8779818]
[1742626135702,0.1497809,84363.0,84362.0,1.8779818]
[1742626136805,0.1809809,84363.0,84362.0,2.16263785]
[1742626137102,0.1809809,84363.0,84362.0,1.44103785]
[1742626137301,0.1809809,84363.0,84362.0,2.16263785]
[1742626137505,0.1809809,84363.0,84362.0,1.44103785]
[1742626137706,0.1809809,84363.0,84362.0,2.16263785]
[1742626138395,0.1809809,84363.0,84362.0,1.44103785]
[1742626138595,0.1809809,84363.0,84362.0,2.16263785]
[1742626141604,0.1809809,84363.0,84362.0,1.44103785]
[1742626142008,0.1809809,84363.0,84362.0,2.16263785]
[1742626142407,0.1809809,84363.0,84362.0,1.44103785]
[1742626142710,0.1809809,84363.0,84362.0,2.16263785]
[1742626144102,0.1497809,84363.0,84362.0,2.16263785]
[1742626144710,0.1497809,84363.0,84362.0,1.44103785]
[1742626144911,0.1497809,84363.0,84362.0,2.16263785]
[1742626145813,0.1185809,84363.0,84362.0,1.44103785]
[1742626146007,0.1185809,84363.0,84362.0,2.16263785]
[1742626147704,0.1185809,84363.0,84362.0,1.44103785]
[1742626148615,0.1185809,84363.0,84362.0,2.16263785]
[1742626149711,0.1185809,84363.0,84362.0,1.44103785]
[1742626150018,0.1185809,84363.0,84362.0,2.16263785]
[1742626150212,0.1185809,84363.0,84362.0,1.44103785]
[1742626150411,0.1185809,84363.0,84362.0,2.16263785]
[1742626150714,0.1185809,84363.0,84362.0,1.44103785]
[1742626151010,0.1185809,84363.0,84362.0,2.16263785]
[1742626152720,0.1185809,84363.0,84362.0,1.93229605]
[1742626152910,0.29951697,84363.0,84362.0,2.04405605]
[1742626153216,0.33071697,84363.0,84362.0,2.04405605]
[1742626153410,0.1185777,84365.0,84364.0,0.118579]
[1742626153720,0.1185777,84365.0,84364.0,0.119339]
[1742626153916,0.23711377,84365.0,84364.0,0.119339]
[1742626154922,0.29951377,84365.0,84364.0,0.119339]
[1742626156719,0.29951377,84365.0,84364.0,0.840939]
[1742626159110,0.23711377,84365.0,84364.0,0.840939]
[1742626159309,0.2371491,84370.0,84369.0,0.0592833]
[1742626159523,0.2378291,84370.0,84369.0,0.1726033]
[1742626159712,0.41407569,84370.0,84369.0,0.1726033]
[1742626160020,0.41479569,84370.0,84369.0,0.1726033]
[1742626161626,0.41479569,84370.0,84369.0,0.1846789]
[1742626163827,0.41479569,84370.0,84369.0,1.0457189]
[1742626164014,0.41407569,84370.0,84369.0,1.0457189]
[1742626164414,0.0592831,84373.0,84372.0,0.177848]
[1742626164621,0.0592831,84373.0,84372.0,0.539328]
[1742626166526,0.0305,84378.0,84372.0,0.539328]
[1742626166527,0.1778299,84384.0,84383.0,0.1185523]
[1742626166723,0.17842991,84384.0,84383.0,0.4793523]
[1742626166921,0.17842991,84384.0,84383.0,0.5927123]
[1742626167426,0.29695194,84384.0,84383.0,0.5927123]
[1742626167727,0.29695194,84384.0,84383.0,0.60152954]
[1742626169421,0.29695194,84384.0,84383.0,0.63252954]
[1742626169918,0.29695194,84384.0,84383.0,0.99332954]
[1742626170128,0.29695194,84384.0,84383.0,0.27172954]
[1742626170331,0.29695194,84384.0,84383.0,0.99332954]
[1742626172926,0.29695194,84384.0,84383.0,1.02522954]
[1742626175629,0.29695194,84384.0,84383.0,0.78518]
[1742626175829,0.62577479,84384.0,84383.0,0.72228]
[1742626176029,0.62577479,84384.0,84383.0,0.36148]
[1742626176537,0.1185551,84381.0,84380.0,0.1126]
[1742626176728,0.1185677,84372.0,84371.0,0.57374051]
[1742626176929,0.1185677,84372.0,84371.0,0.57434051]
[1742626177131,0.29684736,84372.0,84371.0,0.57434051]
[1742626177330,0.41607394,84372.0,84371.0,0.57434051]
[1742626179332,0.41607394,84372.0,84371.0,0.46813841]
[1742626179333,0.56607394,84372.0,84371.0,0.46813841]
[1742626179635,0.1185748,84367.0,84364.0,0.00017784]
[1742626179932,0.11953481,84367.0,84366.0,0.28553605]
[1742626180125,0.44724749,84367.0,84366.0,0.00088]
[1742626180322,0.1185776,84365.0,84364.0,0.00017784]
[1742626180523,0.1197376,84365.0,84364.0,0.00077784]
[1742626180735,0.29745028,84365.0,84364.0,0.00077784]
[1742626181039,0.41598073,84365.0,84364.0,0.00077784]
[1742626182532,0.41598073,84365.0,84364.0,0.00277784]
[1742626183328,0.41598073,84365.0,84364.0,0.00577784]
[1742626199348,0.41598073,84365.0,84364.0,0.00517784]
[1742626206351,0.41598073,84365.0,84364.0,0.48455684]
[1742626206652,0.36608073,84365.0,84364.0,0.48519684]
[1742626206951,0.36608073,84365.0,84364.0,0.51679684]
[1742626208248,0.36608073,84365.0,84364.0,0.15599684]
[1742626208448,0.36608073,84365.0,84364.0,0.51679684]
[1742626209053,0.29745028,84365.0,84364.0,0.51679684]
[1742626210150,0.0593681,84366.0,84365.0,0.1185776]
[1742626210151,0.1185765,84366.0,84365.0,0.1185776]
[1742626210449,0.1185765,84366.0,84365.0,0.1191776]
[1742626210450,0.1194565,84366.0,84365.0,0.1191776]
[1742626211952,0.1194565,84366.0,84365.0,0.1221776]
[1742626212147,0.1194565,84366.0,84365.0,0.1553776]
[1742626213247,0.1194565,84366.0,84365.0,0.1873776]
[1742626214044,0.1194565,84366.0,84365.0,0.5481776]
[1742626216752,0.1194565,84366.0,84365.0,0.5786776]
[1742626218158,0.1194565,84366.0,84365.0,0.2178776]
[1742626218358,0.1194565,84366.0,84365.0,0.5786776]
[1742626222363,0.1194565,84366.0,84365.0,0.6909176]
[1742626223157,0.1508565,84366.0,84365.0,0.6909176]
[1742626223357,0.1194565,84366.0,84365.0,0.6909176]
[1742626225151,0.1508565,84366.0,84365.0,0.6909176]
[1742626228659,0.1508565,84366.0,84365.0,0.3301176]
[1742626228863,0.1194565,84366.0,84365.0,0.6909176]
[1742626229066,0.0592881,84367.0,84366.0,0.1778607]
[1742626229254,0.0592881,84367.0,84366.0,0.2438607]
[1742626229447,0.0592881,84367.0,84366.0,0.2445407]
[1742626230054,0.1778629,84367.0,84366.0,0.2445407]
[1742626230362,0.17846291,84367.0,84366.0,0.2445407]
[1742626231556,0.17846291,84367.0,84366.0,0.2475407]
[1742626231758,0.17846291,84367.0,84366.0,0.2495407]
[1742626235762,0.17846291,84367.0,84366.0,0.3895407]
[1742626235961,0.21066291,84367.0,84366.0,0.3895407]
[1742626237857,0.21066291,84367.0,84366.0,1.2505807]
[1742626238059,0.2100629,84367.0,84366.0,1.2505807]
[1742626238258,0.2100629,84367.0,84366.0,1.1105807]
[1742626238871,0.2414629,84367.0,84366.0,1.1105807]
[1742626240675,0.2421029,84367.0,84366.0,1.4713807]
[1742626240968,0.2414629,84367.0,84366.0,1.4713807]
[1742626250080,0.2414629,84367.0,84366.0,1.1105807]
[1742626250283,0.2421029,84367.0,84366.0,1.1105807]
[1742626250485,0.2414629,84367.0,84366.0,1.1105807]
[1742626252683,0.2414629,84367.0,84366.0,1.4713807]
[1742626257080,0.2092629,84367.0,84366.0,1.4713807]
[1742626261686,0.2092629,84367.0,84366.0,1.1105807]
[1742626261989,0.2092629,84367.0,84366.0,1.4713807]
[1742626262788,0.2397629,84367.0,84366.0,1.4713807]
[1742626266596,0.2397629,84367.0,84366.0,0.6103407]
[1742626266795,0.2092629,84367.0,84366.0,0.6103407]
[1742626267992,0.2092629,84367.0,84366.0,0.2495407]
[1742626268194,0.2092629,84367.0,84366.0,0.6103407]
[1742626270594,0.2092629,84367.0,84366.0,0.2495407]
[1742626270998,0.2092629,84367.0,84366.0,0.6103407]
[1742626271497,0.2092629,84367.0,84366.0,1.4713407]
[1742626272202,0.2404629,84367.0,84366.0,1.4713407]
[1742626276102,0.2404629,84367.0,84366.0,0.6103407]
[1742626276295,0.2092629,84367.0,84366.0,0.6103407]
[1742626280389,0.2092629,84367.0,84366.0,0.2495407]
[1742626280588,0.2092629,84367.0,84366.0,0.6103407]
[1742626281003,0.2092629,84367.0,84366.0,1.4713407]
[1742626287414,0.2422629,84367.0,84366.0,1.4713407]
[1742626289012,0.2422629,84367.0,84366.0,1.75599675]
[1742626290514,0.2422629,84367.0,84366.0,0.89499675]
[1742626291019,0.36079335,84367.0,84366.0,0.71713605]
[1742626291207,0.39159335,84367.0,84366.0,0.83571225]
[1742626291603,0.39159335,84367.0,84366.0,0.47491225]
[1742626291810,0.39159335,84367.0,84366.0,0.83571225]
[1742626292209,0.39159335,84367.0,84366.0,0.71713605]
[1742626292410,0.39159335,84367.0,84366.0,0.36648]
[1742626292611,0.39159335,84367.0,84366.0,0.47824]
[1742626292612,0.5704076,84367.0,84366.0,0.47824]
[1742626292803,0.56980759,84367.0,84366.0,0.47824]
[1742626293007,0.5704076,84367.0,84366.0,0.47824]
[1742626294507,0.5704076,84367.0,84366.0,0.50984]
[1742626295717,0.5704076,84367.0,84366.0,0.14904]
[1742626311028,0.58216088,84367.0,84366.0,0.14904]
[1742626312129,0.5704076,84367.0,84366.0,0.14904]
[1742626315621,0.5704076,84367.0,84366.0,0.16118943]
[1742626315925,0.5704076,84367.0,84366.0,0.19268943]
[1742626316729,0.5396076,84367.0,84366.0,0.19268943]
[1742626319233,0.5396076,84367.0,84366.0,0.08092943]
[1742626321131,0.5066076,84367.0,84366.0,0.08092943]
[1742626336448,0.5066076,84367.0,84366.0,0.19272943]
[1742626352863,0.5066076,84367.0,84366.0,0.31130563]
[1742626369063,0.2973447,84367.0,84366.0,0.31130563]
[1742626369269,0.1185721,84369.0,84367.0,0.1185748]
[1742626369462,0.1185721,84369.0,84368.0,0.0616]
[1742626369673,0.1185721,84369.0,84368.0,0.1810533]
[1742626371263,0.1185721,84369.0,84368.0,0.1820533]
[1742626371667,0.1185721,84369.0,84368.0,0.1840533]
[1742626374772,0.1185721,84369.0,84368.0,0.5448533]
[1742626383486,0.1518721,84369.0,84368.0,0.5448533]
[1742626386582,0.1526721,84369.0,84368.0,0.5448533]
[1742626391495,0.1518721,84369.0,84368.0,1.4058533]
[1742626400497,0.1518721,84369.0,84368.0,1.61896929]
[1742626402295,0.0306,84379.0,84372.0,0.0592832]
[1742626402495,0.1505593,84378.0,84377.0,0.1185593]
[1742626402795,0.1193593,84378.0,84377.0,0.4801593]
[1742626403303,0.1193593,84378.0,84377.0,0.5425593]
[1742626406105,0.1524593,84378.0,84377.0,0.5425593]
[1742626406411,0.1516593,84378.0,84377.0,0.5425593]
[1742626406902,0.0331,84378.0,84377.0,0.5425593]
[1742626407496,0.0649,84378.0,84377.0,0.5425593]
[1742626407703,0.0649,84378.0,84377.0,0.9033593]
[1742626408705,0.1834593,84378.0,84377.0,0.9033593]
[1742626409399,0.1834593,84378.0,84377.0,0.1817593]
[1742626409606,0.1842593,84378.0,84377.0,0.9033593]
[1742626409903,0.1834593,84378.0,84377.0,0.9033593]
[1742626423804,0.0649,84378.0,84377.0,0.9033593]
[1742626424109,0.1834593,84378.0,84377.0,0.9033593]
[1742626425516,0.1842593,84378.0,84377.0,0.9033593]
[1742626426011,0.1842593,84378.0,84377.0,0.1817593]
[1742626426218,0.1842593,84378.0,84377.0,0.9033593]
[1742626427213,0.1842593,84378.0,84377.0,0.1817593]
[1742626427415,0.1842593,84378.0,84377.0,0.9033593]
[1742626429713,0.1842593,84378.0,84377.0,1.7642393]
[1742626429908,0.1834593,84378.0,84377.0,1.0426393]
[1742626430103,0.1834593,84378.0,84377.0,1.7642393]
[1742626434011,0.0649,84378.0,84377.0,1.7642393]
[1742626434212,0.1834593,84378.0,84377.0,1.7642393]
[1742626437914,0.1834593,84378.0,84377.0,1.0426393]
[1742626438120,0.1834593,84378.0,84377.0,1.7642393]
[1742626443323,0.1185571,84380.0,84379.0,0.1185579]
[1742626443527,0.1185571,84380.0,84379.0,0.2311579]
[1742626443727,0.2370721,84380.0,84379.0,0.2634579]
[1742626443930,0.2693721,84380.0,84379.0,0.2634579]
[1742626445229,0.2693721,84380.0,84379.0,0.9850579]
[1742626445527,0.1195571,84380.0,84379.0,0.9850579]
[1742626447028,0.1195571,84380.0,84379.0,1.19847182]
[1742626448225,0.001,84380.0,84379.0,1.19847182]
[1742626451229,0.001,84380.0,84379.0,0.9850579]
[1742626452331,0.1185526,84383.0,84380.0,0.177834]
[1742626452534,0.1778255,84385.0,84384.0,0.1185509]
[1742626452831,0.1778255,84385.0,84384.0,0.1193909]
[1742626453027,0.29633769,84385.0,84384.0,0.1193909]
[1742626453222,0.29713769,84385.0,84384.0,0.1193909]
[1742626454535,0.33053769,84385.0,84384.0,0.1193909]
[1742626456033,0.29813769,84385.0,84384.0,0.1193909]
[1742626457533,0.29813769,84385.0,84384.0,0.1510909]
[1742626459239,0.29813769,84385.0,84384.0,0.1826909]
[1742626459725,0.29813769,84385.0,84384.0,0.5434909]
[1742626460124,0.32963769,84385.0,84384.0,0.5752909]
[1742626463630,0.32883769,84385.0,84384.0,0.2144909]
[1742626463935,0.32963769,84385.0,84384.0,0.5752909]
[1742626464237,0.32883769,84385.0,84384.0,0.5752909]
[1742626466935,0.32883769,84385.0,84384.0,0.5436909]
[1742626468635,0.32883769,84385.0,84384.0,0.1828909]
[1742626468835,0.32883769,84385.0,84384.0,0.5436909]
[1742626469033,0.32967769,84385.0,84384.0,0.5436909]
[1742626469241,0.32967769,84385.0,84384.0,0.1820509]
[1742626469242,0.32883769,84385.0,84384.0,0.1820509]
[1742626469539,0.32883769,84385.0,84384.0,0.5428509]
[1742626475534,0.32883769,84385.0,84384.0,0.1820509]
[1742626475735,0.32967769,84385.0,84384.0,0.5436909]
[1742626476042,0.32883769,84385.0,84384.0,0.5436909]
[1742626483154,0.32883769,84385.0,84384.0,0.5746909]